{"text_format":"1","workbook":"xlsx","n_sheets":1,"sheets":["Pressupost Projecte Ac"],"not_rendered":{"charts":0,"images":2,"macros":1,"external_links":0,"defined_names":1,"comments":1,"pivot_tables":0},"unopened":[],"bounds":{"document_bytes":16777216,"sheet_cells":100000,"rows_first":2000,"rows_last":500,"rows_between":2000,"halvings":0,"cell_chars":16384,"cell_head_chars":4096},"cells_cut":0,"cells_raw":0,"read":"whole","date_system":"1900"}

{"sheet":"Pressupost Projecte Ac","index":0,"n_rows":143,"n_cols":6,"rows_kept":143,"cut":false,"hidden":false,"merged":[[2,2,3,5],[146,2,146,3],[135,2,135,3],[61,0,61,3],[137,2,137,3]]}
[null,null,null,null,null,"Documento básico 3"]
[null,null,null,null,null,"Ámbito temático \"A\": Creación y Consolidación"]
["Programa de subvencions del Ayuntamiento de Barcelona para",null,"Modalitdad \"c\": Formación: Innovación y formación para la gestión y la obertura de nuevas lineas de negocio"]
["el fortalezimiento y reactivación de la Economía Social y Solidaria y el"]
["desarrollo de proyectos que ejecuten la Estrategia ESS 2030 BCN",null,null,null,null,"Atención: Rellenar las celdas en blanco y añadir filas si es necesario"]
[null,null,null,null,null,"Antes de rellenar consultar anotacions a pie de página"]
[]
["DADES BÀSIQUES"]
["Nombre de la persona jurídica",null,null,null,null,"  "]
["NIF de la persona jurídica"]
["Nombre del proyecto subvencionable"]
["Importe total del proyecto subvencionable"]
["Importe imputable a la subvención municipal"]
["Importe de la aportación / Cofinanciamiento de la organización",{"$f":"B12-B13","v":0}]
["% del importe solicitado respecto al total del proyecto subvencionable",{"$f":"B13/B12","v":{"$error":"#DIV/0!"}}]
["Data inici del projecte subvencionat (dd/mm/aaaa)"]
["Data fi del projecte subvencionat (dd/mm/aaaa)"]
[]
["PREVISIÓN DE GASTOS DEL PROYECTO SUBVENCIONABLE"]
["c1. Formación grupal para personas socias, trabajadoras y voluntarias de la empresa/organitzación,  de un mínimo de 10 personas y 10 horas"]
[]
["PARTIDAS","Importe imputable a la subvención municipal","Importe de la aportación / Cofinanciamiento de la organización","Importe total del proyecto"]
["1.  Honorarios de los formadores/as externos",{"$f":"SUM(B24:B26)","v":0},{"$f":"SUM(C24:C26)","v":0},{"$f":"SUM(DespesesProjecteAb1[[#This Row],[Importe imputable a la subvención municipal]],DespesesProjecteAb1[[#This Row],[Importe de la aportación / Cofinanciamiento de la organización]])","v":0}]
[null,null,null,{"$f":"SUM(DespesesProjecteAb1[[#This Row],[Importe imputable a la subvención municipal]],DespesesProjecteAb1[[#This Row],[Importe de la aportación / Cofinanciamiento de la organización]])","v":0}]
[null,null,null,{"$f":"SUM(DespesesProjecteAb1[[#This Row],[Importe imputable a la subvención municipal]],DespesesProjecteAb1[[#This Row],[Importe de la aportación / Cofinanciamiento de la organización]])","v":0}]
[null,null,null,{"$f":"SUM(DespesesProjecteAb1[[#This Row],[Importe imputable a la subvención municipal]],DespesesProjecteAb1[[#This Row],[Importe de la aportación / Cofinanciamiento de la organización]])","v":0}]
["2.  Coste salarial de las personas participantes (Max 30%) ",{"$f":"SUM(B28:B32)","v":0},{"$f":"SUM(C28:C30)","v":0},{"$f":"SUM(DespesesProjecteAb1[[#This Row],[Importe imputable a la subvención municipal]],DespesesProjecteAb1[[#This Row],[Importe de la aportación / Cofinanciamiento de la organización]])","v":0}]
[null,null,null,{"$f":"SUM(DespesesProjecteAb1[[#This Row],[Importe imputable a la subvención municipal]],DespesesProjecteAb1[[#This Row],[Importe de la aportación / Cofinanciamiento de la organización]])","v":0}]
[null,null,null,{"$f":"SUM(DespesesProjecteAb1[[#This Row],[Importe imputable a la subvención municipal]],DespesesProjecteAb1[[#This Row],[Importe de la aportación / Cofinanciamiento de la organización]])","v":0}]
[null,null,null,{"$f":"SUM(DespesesProjecteAb1[[#This Row],[Importe imputable a la subvención municipal]],DespesesProjecteAb1[[#This Row],[Importe de la aportación / Cofinanciamiento de la organización]])","v":0}]
["3.  Alquiler de espacios directamente vinculados a la actividad subvencionable.",{"$f":"SUM(B32:B34)","v":0},{"$f":"SUM(C32:C34)","v":0},{"$f":"SUM(DespesesProjecteAb1[[#This Row],[Importe imputable a la subvención municipal]],DespesesProjecteAb1[[#This Row],[Importe de la aportación / Cofinanciamiento de la organización]])","v":0}]
[null,null,null,{"$f":"SUM(DespesesProjecteAb1[[#This Row],[Importe imputable a la subvención municipal]],DespesesProjecteAb1[[#This Row],[Importe de la aportación / Cofinanciamiento de la organización]])","v":0}]
[null,null,null,{"$f":"SUM(DespesesProjecteAb1[[#This Row],[Importe imputable a la subvención municipal]],DespesesProjecteAb1[[#This Row],[Importe de la aportación / Cofinanciamiento de la organización]])","v":0}]
[null,null,null,{"$f":"SUM(DespesesProjecteAb1[[#This Row],[Importe imputable a la subvención municipal]],DespesesProjecteAb1[[#This Row],[Importe de la aportación / Cofinanciamiento de la organización]])","v":0}]
["4.  Adquisición de materiales i consumibles íntegramente imputables al proyecto subvencionable.",{"$f":"SUM(B36:B38)","v":0},{"$f":"SUM(C36:C38)","v":0},{"$f":"SUM(DespesesProjecteAb1[[#This Row],[Importe imputable a la subvención municipal]],DespesesProjecteAb1[[#This Row],[Importe de la aportación / Cofinanciamiento de la organización]])","v":0}]
[null,null,null,{"$f":"SUM(DespesesProjecteAb1[[#This Row],[Importe imputable a la subvención municipal]],DespesesProjecteAb1[[#This Row],[Importe de la aportación / Cofinanciamiento de la organización]])","v":0}]
[null,null,null,{"$f":"SUM(DespesesProjecteAb1[[#This Row],[Importe imputable a la subvención municipal]],DespesesProjecteAb1[[#This Row],[Importe de la aportación / Cofinanciamiento de la organización]])","v":0}]
[null,null,null,{"$f":"SUM(DespesesProjecteAb1[[#This Row],[Importe imputable a la subvención municipal]],DespesesProjecteAb1[[#This Row],[Importe de la aportación / Cofinanciamiento de la organización]])","v":0}]
["5.  Transporte – mensajería imputables al proyecto.",{"$f":"SUM(B40:B42)","v":0},{"$f":"SUM(C40:C42)","v":0},{"$f":"SUM(DespesesProjecteAb1[[#This Row],[Importe imputable a la subvención municipal]],DespesesProjecteAb1[[#This Row],[Importe de la aportación / Cofinanciamiento de la organización]])","v":0}]
[null,null,null,{"$f":"SUM(DespesesProjecteAb1[[#This Row],[Importe imputable a la subvención municipal]],DespesesProjecteAb1[[#This Row],[Importe de la aportación / Cofinanciamiento de la organización]])","v":0}]
[null,null,null,{"$f":"SUM(DespesesProjecteAb1[[#This Row],[Importe imputable a la subvención municipal]],DespesesProjecteAb1[[#This Row],[Importe de la aportación / Cofinanciamiento de la organización]])","v":0}]
[null,null,null,{"$f":"SUM(DespesesProjecteAb1[[#This Row],[Importe imputable a la subvención municipal]],DespesesProjecteAb1[[#This Row],[Importe de la aportación / Cofinanciamiento de la organización]])","v":0}]
["6.  Seguros",{"$f":"SUM(B44:B46)","v":0},{"$f":"SUM(C44:C46)","v":0},{"$f":"SUM(DespesesProjecteAb1[[#This Row],[Importe imputable a la subvención municipal]],DespesesProjecteAb1[[#This Row],[Importe de la aportación / Cofinanciamiento de la organización]])","v":0}]
[null,null,null,{"$f":"SUM(DespesesProjecteAb1[[#This Row],[Importe imputable a la subvención municipal]],DespesesProjecteAb1[[#This Row],[Importe de la aportación / Cofinanciamiento de la organización]])","v":0}]
[null,null,null,{"$f":"SUM(DespesesProjecteAb1[[#This Row],[Importe imputable a la subvención municipal]],DespesesProjecteAb1[[#This Row],[Importe de la aportación / Cofinanciamiento de la organización]])","v":0}]
[null,null,null,{"$f":"SUM(DespesesProjecteAb1[[#This Row],[Importe imputable a la subvención municipal]],DespesesProjecteAb1[[#This Row],[Importe de la aportación / Cofinanciamiento de la organización]])","v":0}]
["7.  Viajes y desplazamientos imputables a las actividades del proyecto subvencionable. (Màx. 10% del importe de la subvención)",{"$f":"SUM(B48:B50)","v":0},{"$f":"SUM(C48:C50)","v":0},{"$f":"SUM(DespesesProjecteAb1[[#This Row],[Importe imputable a la subvención municipal]],DespesesProjecteAb1[[#This Row],[Importe de la aportación / Cofinanciamiento de la organización]])","v":0}]
[null,null,null,{"$f":"SUM(DespesesProjecteAb1[[#This Row],[Importe imputable a la subvención municipal]],DespesesProjecteAb1[[#This Row],[Importe de la aportación / Cofinanciamiento de la organización]])","v":0}]
[null,null,null,{"$f":"SUM(DespesesProjecteAb1[[#This Row],[Importe imputable a la subvención municipal]],DespesesProjecteAb1[[#This Row],[Importe de la aportación / Cofinanciamiento de la organización]])","v":0}]
[null,null,null,{"$f":"SUM(DespesesProjecteAb1[[#This Row],[Importe imputable a la subvención municipal]],DespesesProjecteAb1[[#This Row],[Importe de la aportación / Cofinanciamiento de la organización]])","v":0}]
["TOTAL DE GASTOS PREVISTOS",{"$f":"B27+B23+B31+B35+B39+B43+B47","v":0},{"$f":"C27+C23+C31+C35+C39+C43+C47","v":0},0]
[]
[]
["1. La cuantía de la subvención otorgada no superará el 80% del gasto total del proyecto a subvencionar."]
["2.  Las solicitudes pueden contener una proposta de proyecto de formación que contenga las tres submodalidades (Ac1, Ac2 i Ac3), dos de ellas o bien tan solo una.   "]
["3.  En todo caso, el importe máximo de subvención, tanto si la solicitud contiene una, dos o tres submodalidades  será de 4.500 €. "]
["4.  Los gastos de vaijes y desplazamientos imputables a las actividades del proyecto subvencionable se limitan a un máximo del 10% del importe de la subvención. "]
["5.  En el caso que la solicitud presentada sobrepase el importe máximo se considerará como importe solicitado el máximo establecido en la convocatoria. "]
["6.  No son imputables en esta submodalidad ningun gasto indirecto detallado en el apartado 13.3 de las bases reguladoras."]
[]
["PREVISIÓN DE GASTOS DEL PROYECTO SUBVENCIONABLE"]
["c2. Gastos de matriculación del personal de la entidad en acciones formativas externas o bien gastos salariales del personal.  \nde l’empresa/organització en la participació en accions formatives públiques o comunitàries sense cost de matriculació. "]
[]
["PARTIDAS","Importe imputable a la subvención municipal","Importe de la aportación / Cofinanciamiento de la entidad","Importe total del proyecto"]
["1. Gastos de matriculación en acciones formativas externas",{"$f":"SUM(B66:B70)","v":0},{"$f":"SUM(C66:C70)","v":0},{"$f":"SUM(DespesesProjecteAb2[[#This Row],[Importe imputable a la subvención municipal]],DespesesProjecteAb2[[#This Row],[Importe de la aportación / Cofinanciamiento de la entidad]])","v":0}]
[null,null,null,{"$f":"SUM(DespesesProjecteAb2[[#This Row],[Importe imputable a la subvención municipal]],DespesesProjecteAb2[[#This Row],[Importe de la aportación / Cofinanciamiento de la entidad]])","v":0}]
[null,null,null,{"$f":"SUM(DespesesProjecteAb2[[#This Row],[Importe imputable a la subvención municipal]],DespesesProjecteAb2[[#This Row],[Importe de la aportación / Cofinanciamiento de la entidad]])","v":0}]
[null,null,null,{"$f":"SUM(DespesesProjecteAb2[[#This Row],[Importe imputable a la subvención municipal]],DespesesProjecteAb2[[#This Row],[Importe de la aportación / Cofinanciamiento de la entidad]])","v":0}]
[null,null,null,{"$f":"SUM(DespesesProjecteAb2[[#This Row],[Importe imputable a la subvención municipal]],DespesesProjecteAb2[[#This Row],[Importe de la aportación / Cofinanciamiento de la entidad]])","v":0}]
[null,null,null,{"$f":"SUM(DespesesProjecteAb2[[#This Row],[Importe imputable a la subvención municipal]],DespesesProjecteAb2[[#This Row],[Importe de la aportación / Cofinanciamiento de la entidad]])","v":0}]
["2.  Coste salarial de las personas participantes (Max 30%) ",{"$f":"SUM(B72:B76)","v":0},{"$f":"SUM(C72:C76)","v":0},{"$f":"SUM(DespesesProjecteAb2[[#This Row],[Importe imputable a la subvención municipal]],DespesesProjecteAb2[[#This Row],[Importe de la aportación / Cofinanciamiento de la entidad]])","v":0}]
[null,null,null,{"$f":"SUM(DespesesProjecteAb2[[#This Row],[Importe imputable a la subvención municipal]],DespesesProjecteAb2[[#This Row],[Importe de la aportación / Cofinanciamiento de la entidad]])","v":0}]
[null,null,null,{"$f":"SUM(DespesesProjecteAb2[[#This Row],[Importe imputable a la subvención municipal]],DespesesProjecteAb2[[#This Row],[Importe de la aportación / Cofinanciamiento de la entidad]])","v":0}]
[null,null,null,{"$f":"SUM(DespesesProjecteAb2[[#This Row],[Importe imputable a la subvención municipal]],DespesesProjecteAb2[[#This Row],[Importe de la aportación / Cofinanciamiento de la entidad]])","v":0}]
[null,null,null,{"$f":"SUM(DespesesProjecteAb2[[#This Row],[Importe imputable a la subvención municipal]],DespesesProjecteAb2[[#This Row],[Importe de la aportación / Cofinanciamiento de la entidad]])","v":0}]
[null,null,null,{"$f":"SUM(DespesesProjecteAb2[[#This Row],[Importe imputable a la subvención municipal]],DespesesProjecteAb2[[#This Row],[Importe de la aportación / Cofinanciamiento de la entidad]])","v":0}]
["TOTAL GASTOS PREVISTOS",{"$f":"B71+B65","v":0},{"$f":"C71+C65","v":0},0]
[]
["1. La cuantía de la subvención otorgada no superará el 80% del gasto total del proyecto a subvencionar."]
["2.  Las solicitudes pueden contener una proposta de proyecto de formación que contenga las tres submodalidades (Ac1, Ac2 i Ac3), dos de ellas o bien tan solo una.  "]
["3.  En todo caso, el importe máximo de subvención, tanto si la solicitud contiene una, dos o tres submodalidades  será de 4.500 €. "]
["4.  En el caso que la solicitud presentada sobrepase el importe máximo se considerará como importe solicitado el máximo establecido en la convocatoria. "]
["5.  No son imputables en esta submodalidad ningun gasto indirecto detallado en el apartado 13.3 de las bases reguladoras."]
["6.  La formación a subvencionar tiene que tener una duración mínima de 150 horas y/o un coste mínimo de 300 € por  cada participante."]
[]
["PREVISIÓN DE GASTOS DEL PROYECTO SUBVENCIONABLE"]
["c3. Prácticas de las personas estudiantes universitarias y de formación dual de FP en entidades y empresas de la ESS"]
[]
["PARTIDAS","Importe imputable a la subvención municipal","Importe de la aportación / Cofinanciamiento de la entidad","Importe total del proyecto"]
["1.  Gastos de ayuda económica -beca- de la persona estudiante en prácticas",{"$f":"SUM(B91:B95)","v":0},{"$f":"SUM(C91:C95)","v":0},{"$f":"SUM(DespesesProjecteAb14[[#This Row],[Importe imputable a la subvención municipal]],DespesesProjecteAb14[[#This Row],[Importe de la aportación / Cofinanciamiento de la entidad]])","v":0}]
[null,null,null,{"$f":"SUM(DespesesProjecteAb14[[#This Row],[Importe imputable a la subvención municipal]],DespesesProjecteAb14[[#This Row],[Importe de la aportación / Cofinanciamiento de la entidad]])","v":0}]
[null,null,null,{"$f":"SUM(DespesesProjecteAb14[[#This Row],[Importe imputable a la subvención municipal]],DespesesProjecteAb14[[#This Row],[Importe de la aportación / Cofinanciamiento de la entidad]])","v":0}]
[null,null,null,{"$f":"SUM(DespesesProjecteAb14[[#This Row],[Importe imputable a la subvención municipal]],DespesesProjecteAb14[[#This Row],[Importe de la aportación / Cofinanciamiento de la entidad]])","v":0}]
[null,null,null,{"$f":"SUM(DespesesProjecteAb14[[#This Row],[Importe imputable a la subvención municipal]],DespesesProjecteAb14[[#This Row],[Importe de la aportación / Cofinanciamiento de la entidad]])","v":0}]
[null,null,null,{"$f":"SUM(DespesesProjecteAb14[[#This Row],[Importe imputable a la subvención municipal]],DespesesProjecteAb14[[#This Row],[Importe de la aportación / Cofinanciamiento de la entidad]])","v":0}]
["2.  Gastos de seguridad social del alumnado en prácticas. ",{"$f":"SUM(B97:B101)","v":0},{"$f":"SUM(C97:C101)","v":0},{"$f":"SUM(DespesesProjecteAb14[[#This Row],[Importe imputable a la subvención municipal]],DespesesProjecteAb14[[#This Row],[Importe de la aportación / Cofinanciamiento de la entidad]])","v":0}]
[null,null,null,{"$f":"SUM(DespesesProjecteAb14[[#This Row],[Importe imputable a la subvención municipal]],DespesesProjecteAb14[[#This Row],[Importe de la aportación / Cofinanciamiento de la entidad]])","v":0}]
[null,null,null,{"$f":"SUM(DespesesProjecteAb14[[#This Row],[Importe imputable a la subvención municipal]],DespesesProjecteAb14[[#This Row],[Importe de la aportación / Cofinanciamiento de la entidad]])","v":0}]
[null,null,null,{"$f":"SUM(DespesesProjecteAb14[[#This Row],[Importe imputable a la subvención municipal]],DespesesProjecteAb14[[#This Row],[Importe de la aportación / Cofinanciamiento de la entidad]])","v":0}]
[null,null,null,{"$f":"SUM(DespesesProjecteAb14[[#This Row],[Importe imputable a la subvención municipal]],DespesesProjecteAb14[[#This Row],[Importe de la aportación / Cofinanciamiento de la entidad]])","v":0}]
[null,null,null,{"$f":"SUM(DespesesProjecteAb14[[#This Row],[Importe imputable a la subvención municipal]],DespesesProjecteAb14[[#This Row],[Importe de la aportación / Cofinanciamiento de la entidad]])","v":0}]
["3.  Gastos del contrato laboral de formación dual, modalidad de contrato de formación y aprendizage.",{"$f":"SUM(B103:B107)","v":0},{"$f":"SUM(C103:C107)","v":0},{"$f":"SUM(DespesesProjecteAb14[[#This Row],[Importe imputable a la subvención municipal]],DespesesProjecteAb14[[#This Row],[Importe de la aportación / Cofinanciamiento de la entidad]])","v":0}]
[null,null,null,{"$f":"SUM(DespesesProjecteAb14[[#This Row],[Importe imputable a la subvención municipal]],DespesesProjecteAb14[[#This Row],[Importe de la aportación / Cofinanciamiento de la entidad]])","v":0}]
[null,null,null,{"$f":"SUM(DespesesProjecteAb14[[#This Row],[Importe imputable a la subvención municipal]],DespesesProjecteAb14[[#This Row],[Importe de la aportación / Cofinanciamiento de la entidad]])","v":0}]
[null,null,null,{"$f":"SUM(DespesesProjecteAb14[[#This Row],[Importe imputable a la subvención municipal]],DespesesProjecteAb14[[#This Row],[Importe de la aportación / Cofinanciamiento de la entidad]])","v":0}]
[null,null,null,{"$f":"SUM(DespesesProjecteAb14[[#This Row],[Importe imputable a la subvención municipal]],DespesesProjecteAb14[[#This Row],[Importe de la aportación / Cofinanciamiento de la entidad]])","v":0}]
[null,null,null,{"$f":"SUM(DespesesProjecteAb14[[#This Row],[Importe imputable a la subvención municipal]],DespesesProjecteAb14[[#This Row],[Importe de la aportación / Cofinanciamiento de la entidad]])","v":0}]
["4.  Gasto de gestión vinculados a la tramitación del convenio de cooperación educativa o el acuerdo de formación de colaboración. ",{"$f":"SUM(B109:B111)","v":0},{"$f":"SUM(C109:C111)","v":0},{"$f":"SUM(DespesesProjecteAb14[[#This Row],[Importe imputable a la subvención municipal]],DespesesProjecteAb14[[#This Row],[Importe de la aportación / Cofinanciamiento de la entidad]])","v":0}]
[null,null,null,{"$f":"SUM(DespesesProjecteAb14[[#This Row],[Importe imputable a la subvención municipal]],DespesesProjecteAb14[[#This Row],[Importe de la aportación / Cofinanciamiento de la entidad]])","v":0}]
[null,null,null,{"$f":"SUM(DespesesProjecteAb14[[#This Row],[Importe imputable a la subvención municipal]],DespesesProjecteAb14[[#This Row],[Importe de la aportación / Cofinanciamiento de la entidad]])","v":0}]
[null,null,null,{"$f":"SUM(DespesesProjecteAb14[[#This Row],[Importe imputable a la subvención municipal]],DespesesProjecteAb14[[#This Row],[Importe de la aportación / Cofinanciamiento de la entidad]])","v":0}]
[null,null,null,{"$f":"SUM(DespesesProjecteAb14[[#This Row],[Importe imputable a la subvención municipal]],DespesesProjecteAb14[[#This Row],[Importe de la aportación / Cofinanciamiento de la entidad]])","v":0}]
[null,null,null,{"$f":"SUM(DespesesProjecteAb14[[#This Row],[Importe imputable a la subvención municipal]],DespesesProjecteAb14[[#This Row],[Importe de la aportación / Cofinanciamiento de la entidad]])","v":0}]
["TOTAL GASTOS PREVISTOS",{"$f":"B108+B102+B96+B90","v":0},0,{"$f":"D108+D102+D96+D90","v":0}]
[]
[]
["1. La cuantía de la subvención otorgada no superará el 80% del gasto total del proyecto a subvencionar."]
["2.  Las solicitudes pueden contener una proposta de proyecto de formación que contenga las tres submodalidades (Ac1, Ac2 i Ac3), dos de ellas o bien tan solo una.  "]
["3.  En todo caso, el importe máximo de subvención, tanto si la solicitud contiene una, dos o tres submodalidades  será de 4.500 €. "]
["4.  En el caso que la solicitud presentada sobrepase el importe máximo se considerará como importe solicitado el máximo establecido en la convocatoria. "]
["5.  No son imputables en esta submodalidad ningun gasto indirecto detallado en el apartado 13.3 de las bases reguladoras."]
["6.  El alumnado beneficiario tienen que ser personas residentes en la ciudad de Barcelona  i/o estar matriculados en universidades o centros de formación de la ciudad"]
["7.  El programa de prácticas del alumnado tiene que tener una duración mínima de 400 horas. "]
["8.  Solo puede presentarse una solicitud de prácticas  por entidad solicitante. "]
["9.  Será necesario dar de alta al alumnado en la seguridad social como alumno/a en prácticas.  "]
["10.  El coste bruto hora de la remuneración del alumno/a en práctiques universitàrias no podrá ser inferior de 6€ hora "]
[]
["PREVISIÓN DE GASTOS DEL PROYECTO SUBVENCIONABLE (c1 + c2 + c3) "]
[]
[]
["PARTIDAS","Importe imputable a la subvención municipal","Importe de la aportación / Cofinanciamiento de la entidad","Importe total del proyecto"]
["TOTAL DE DESPESES PREVISTES",{"$f":"SUM(B51,B77,B114)","v":0},{"$f":"SUM(C51,C77,C114)","v":0},{"$f":"SUM(D51,D77,D114)","v":0}]
[]
["Barcelona, "]
[]
["Sello de la organización",null,"Firma del representante legal de la organización"]
[]
["Atención: En caso de personas jurídicas no firme este documento ahora.\nMás adelante firmaréis digitalmente este documento",null,"Atención: En caso de registro físico para las personas físicas\nAñada la fecha y la firma del representante legal de la organización aquí para que este documento tenga validez legal"]
[]
["1. La cuantía de la subvención otorgada no superará el 80% del gasto total del proyecto a subvencionar."]
["2.  Las solicitudes pueden contener una proposta de proyecto de formación que contenga las tres submodalidades (Ac1, Ac2 i Ac3), dos de ellas o bien tan solo una.  "]
["3.  En todo caso, el importe máximo de subvención, tanto si la solicitud contiene una, dos o tres submodalidades  será de 4.500 €. "]
["4.  En el caso que la solicitud presentada sobrepase el importe máximo se considerará como importe solicitado el máximo establecido en la convocatoria. "]